[Event "XTX Markets LCC Super Blitz-S2 2024"]
[Site "London"]
[Date "2024.12.07"]
[Round "6.4"]
[White "Adams, Michael"]
[Black "Stefansson, Vignir Vatnar"]
[Result "1-0"]
[Annotator "ChessBase"]
[ECO "B07"]
[WhiteElo "2662"]
[BlackElo "2537"]
[PlyCount "89"]
[EventDate "2024.11.28"]
[EventType "tourn"]
[EventCountry "ENG"]
[SourceTitle "playchess.com"]
[Source "ChessBase"]
[SourceQuality "1"]
[TimeControl "180+2"]

1. e4 {[%emt 0:00:01]} d6 {[%emt 0:00:00]} 2. d4 {[%emt 0:00:02]} Nf6 {[%emt 0:00:01]} 3. Nc3 {[%emt 0:00:01]} e5 {[%emt 0:00:01]} 4. Nf3 {[%emt 0:00:01]} Nbd7 {[%emt 0:00:01]} 5. g3 {[%emt 0:00:02]} c6 {[%emt 0:00:09]} 6. a4 {[%emt 0:00:01]} g6 {[%emt 0:00:15]} 7. Bg2 {[%emt 0:00:02]} Bg7 {[%emt 0:00:08]} 8. O-O {[%emt 0:00:03]} O-O {[%emt 0:00:01]} 9. Re1 {[%emt 0:00:02]} Qc7 {[%emt 0:00:02]} 10. h3 {[%emt 0:00:04]} a5 {[%emt 0:00:01]} 11. Be3 {[%emt 0:00:03]} Re8 {[%emt 0:00:15]} 12. Qd2 {[%emt 0:00:05]} exd4 {[%emt 0:00:01]} 13. Nxd4 {[%emt 0:00:11]} Nc5 {[%emt 0:00:13]} 14. Bf4 {[%emt 0:00:03]} Nh5 {[%emt 0:00:14]} 15. Bh6 {[%emt 0:00:03]} Bd7 {[%emt 0:00:05]} 16. Rad1 {[%emt 0:00:03]} Rad8 {[%emt 0:00:01]} 17. Bxg7 {[%emt 0:00:11]} Nxg7 {[%emt 0:00:02]} 18. Nf3 {[%emt 0:00:05]} Bc8 {[%emt 0:00:02]} 19. Qh6 {[%emt 0:00:04]} Nge6 {[%emt 0:00:16]} 20. b3 {[%emt 0:00:05]} Qe7 {[%emt 0:00:01]} 21. Qd2 {[%emt 0:00:06]} Qf6 {[%emt 0:00:02]} 22. Re3 {[%emt 0:00:02]} Nc7 {[%emt 0:00:30]} 23. Qe1 {[%emt 0:00:04]} Qg7 {[%emt 0:00:06]} 24. Nd4 {[%emt 0:00:08]} N7e6 {[%emt 0:00:01]} 25. Nce2 {[%emt 0:00:02]} Ng5 {[%emt 0:00:02]} 26. Nf4 {[%emt 0:00:10]} Qe5 {[%emt 0:00:25]} 27. h4 {[%emt 0:00:11]} Nge6 {[%emt 0:00:14]} 28. Ndxe6 {[%emt 0:00:02]} Nxe6 {[%emt 0:00:01]} 29. Nd3 {[%emt 0:00:01]} Qh5 {[%emt 0:00:19]} 30. e5 {[%emt 0:00:28]} Nd4 {[%emt 0:00:07]} 31. Nf4 {[%emt 0:00:10]} Qxd1 {[%emt 0:00:16]} 32. Qxd1 {[%emt 0:00:03]} dxe5 {[%emt 0:00:00]} 33. Nd3 {[%emt 0:00:05]} f6 {[%emt 0:00:01]} 34. c3 {[%emt 0:00:10]} Nf5 {[%emt 0:00:01]} 35. Re1 {[%emt 0:00:03]} Be6 {[%emt 0:00:00]} 36. Qc2 {[%emt 0:00:02]} Bd5 {[%emt 0:00:02]} 37. Nc5 {[%emt 0:00:03]} Bxg2 38. Kxg2 {[%emt 0:00:01]} b6 {[%emt 0:00:03]} 39. Ne4 {[%emt 0:00:02]} Kf7 {[%emt 0:00:01]} 40. Rd1 {[%emt 0:00:01]} Rd5 {[%emt 0:00:01]} 41. c4 {[%emt 0:00:10]} Rxd1 {[%emt 0:00:11]} 42. Qxd1 {[%emt 0:00:01]} Ke7 {[%emt 0:00:01]} 43. c5 {[%emt 0:00:02]} Rd8 {[%emt 0:00:07]} 44. Qe1 {[%emt 0:00:06]} bxc5 {[%emt 0:00:06]} 45. Qxa5 {[%emt 0:00:02]} 1-0

[Event "XTX Markets LCC Super Blitz-S2 2024"]
[Site "London"]
[Date "2024.12.07"]
[Round "7.1"]
[White "Stefansson, Vignir Vatnar"]
[Black "Vachier-Lagrave, Maxime"]
[Result "0-1"]
[Annotator "TA"]
[ECO "D78"]
[WhiteElo "2537"]
[BlackElo "2731"]
[PlyCount "42"]
[EventDate "2024.11.28"]
[EventType "tourn"]
[EventCountry "ENG"]
[SourceTitle "playchess.com"]
[Source "ChessBase"]
[SourceQuality "1"]
[TimeControl "180+2"]

{[%evp 13,42,6,8,9,5,8,6,0,24,-4,8,-41,-9,-23,-26,-220,-210,-434,-436,-426,-417,-495,-495,-496,-497,-560,-568,-798,-802,-765,-586]} 1. d4 {[%emt 0:00:01]} Nf6 {[%emt 0:00:01]} 2. c4 {[%emt 0:00:01]} g6 {[%emt 0:00:01]} 3. g3 {[%emt 0:00:01]} c6 {[%emt 0:00:01]} 4. Bg2 {[%emt 0:00:01]} d5 {[%emt 0:00:03]} 5. Nf3 {[%emt 0:00:01]} Bg7 {[%emt 0:00:01]} 6. O-O {[%emt 0:00:02]} O-O {[%emt 0:00:02]} 7. Qb3 {[%emt 0:00:02]} a5 {[%emt 0:00:02]} 8. cxd5 {[%emt 0:00:22]} a4 {[%emt 0:00:02]} 9. Qd1 {[%emt 0:00:04]} cxd5 {[%emt 0:00:02]} 10. Nc3 {[%emt 0:00:02] The position is equal.} Ne4 {[%emt 0:00:01][%cal Oa4a3]} 11. Nxa4 {[%emt 0:00:41]} Qa5 {[%emt 0:00:01]} 12. b3 {[%emt 0:00:09]} (12. Nc3 $11 {is more appropriate.}) 12... b5 $15 {[%emt 0:00:01]} 13. Nb2 {[%emt 0:00:06]} Nc6 $36 {[%emt 0:00:10][%cal Bb8c6,Bc6d4,Bd4e2,Be2c3][%mdl 2080] Black has the initiative.} 14. Bd2 $2 {[%emt 0:00:02] [#] White does not recover from this.} (14. e3 $11 {and White stays safe.}) 14... Nxd2 $19 {[%emt 0:00:03]} 15. Qxd2 {[%emt 0:00:01]} (15. Nxd2 Nxd4 16. Nd3) 15... Qxd2 16. Nxd2 {[%emt 0:00:01]} Nxd4 {[%emt 0:00:06]} (16... Bxd4 $2 17. Bxd5 Ra6 (17... Bxb2 18. Bxc6 Ra5 19. Rab1 $11) 18. Rfb1 $19) 17. Bxd5 {[%emt 0:00:22]} Ra7 {[%emt 0:00:01] Black is clearly winning.} ({Don't play} 17... Nxe2+ 18. Kg2 Ra7 19. Bf3) 18. Kg2 {[%emt 0:00:16]} Rd8 {[%emt 0:00:01]} ({Resist} 18... Nxe2 19. Bf3 Bxb2 20. Bxe2 Bxa1 21. Rxa1 Bb7+ 22. Kf1) 19. Be4 {[%emt 0:00:54]} Nxe2 {[%emt 0:00:05]} 20. Nd3 {[%emt 0:00:02]} Bxa1 {[%emt 0:00:03]} 21. Rxa1 {[%emt 0:00:00]} Nc3 {[%emt 0:00:02] Weighted Error Value: White=0.90/Black=0.02 (flawless) .  Loses game:     	White=1     	---        Mistake:       	White=2     	---        Inaccurate:     	White=2     	---        OK:         	White=5     	Black=8      Best:        	---       	Black=3} 0-1

[Event "XTX Markets LCC Super Blitz-S2 2024"]
[Site "London"]
[Date "2024.12.07"]
[Round "7.2"]
[White "Jones, Gawain C B"]
[Black "Adams, Michael"]
[Result "0-1"]
[Annotator "ChessBase"]
[ECO "A09"]
[WhiteElo "2639"]
[BlackElo "2662"]
[PlyCount "122"]
[EventDate "2024.11.28"]
[EventType "tourn"]
[EventCountry "ENG"]
[SourceTitle "playchess.com"]
[Source "ChessBase"]
[SourceQuality "1"]
[TimeControl "180+2"]

1. Nf3 {[%emt 0:00:01]} d5 {[%emt 0:00:01]} 2. c4 {[%emt 0:00:02]} d4 {[%emt 0:00:02]} 3. b4 {[%emt 0:00:01]} c5 {[%emt 0:00:04]} 4. g3 {[%emt 0:00:03]} cxb4 {[%emt 0:00:02]} 5. a3 {[%emt 0:00:01]} b3 {[%emt 0:00:01]} 6. d3 {[%emt 0:00:10]} Nc6 {[%emt 0:00:02]} 7. Nbd2 {[%emt 0:00:01]} e5 {[%emt 0:00:02]} 8. Nxb3 {[%emt 0:00:01]} Be7 {[%emt 0:00:03]} 9. Bg2 {[%emt 0:00:01]} Nf6 {[%emt 0:00:02]} 10. O-O {[%emt 0:00:02]} O-O {[%emt 0:00:01]} 11. e3 {[%emt 0:00:02]} dxe3 {[%emt 0:00:06]} 12. Bxe3 {[%emt 0:00:01]} Bf5 {[%emt 0:00:02]} 13. d4 {[%emt 0:00:02]} exd4 {[%emt 0:00:02]} 14. Nfxd4 {[%emt 0:00:01]} Nxd4 {[%emt 0:00:41]} 15. Nxd4 {[%emt 0:00:04]} Be4 {[%emt 0:00:03]} 16. Bh3 {[%emt 0:00:07]} Qc7 {[%emt 0:00:05]} 17. Qb3 {[%emt 0:00:15]} b6 {[%emt 0:00:03]} 18. Rad1 {[%emt 0:00:22]} Rad8 {[%emt 0:00:06]} 19. Nf5 {[%emt 0:00:16]} Bc5 {[%emt 0:00:19]} 20. Bg5 {[%emt 0:00:05]} Rxd1 {[%emt 0:01:55]} 21. Qxd1 {[%emt 0:00:10]} Bxf5 {[%emt 0:00:00]} 22. Bxf5 {[%emt 0:00:02]} Qe5 {[%emt 0:00:00]} 23. Qf3 {[%emt 0:00:33]} g6 {[%emt 0:00:00]} 24. Bxf6 {[%emt 0:00:05]} Qxf6 {[%emt 0:00:00]} 25. Be4 {[%emt 0:00:01]} Qxf3 {[%emt 0:00:00]} 26. Bxf3 {[%emt 0:00:01]} Rd8 {[%emt 0:00:00]} 27. Bd5 {[%emt 0:00:03]} Re8 {[%emt 0:00:00]} 28. a4 {[%emt 0:00:03]} Re2 {[%emt 0:00:00]} 29. g4 {[%emt 0:00:08]} Rb2 {[%emt 0:00:00]} 30. Kg2 {[%emt 0:00:10]} a5 {[%emt 0:00:00]} 31. h4 {[%emt 0:00:13]} Kg7 {[%emt 0:00:00]} 32. Kf3 {[%emt 0:00:07]} Ra2 {[%emt 0:00:00]} 33. Bc6 {[%emt 0:00:02]} Rd2 {[%emt 0:00:00]} 34. Bd5 {[%emt 0:00:10]} Rd3+ {[%emt 0:00:28]} 35. Ke2 {[%emt 0:00:09]} Rd4 {[%emt 0:00:00]} 36. Kf3 {[%emt 0:00:02]} h5 {[%emt 0:00:00]} 37. gxh5 {[%emt 0:00:02]} gxh5 {[%emt 0:00:00]} 38. Rg1+ {[%emt 0:00:01]} Kf6 {[%emt 0:00:08]} 39. Rh1 {[%emt 0:00:22]} Bd6 {[%emt 0:00:00]} 40. Ke3 {[%emt 0:00:03]} Rg4 {[%emt 0:00:00]} 41. Kd3 {[%emt 0:00:06]} Rf4 {[%emt 0:00:00]} 42. f3 {[%emt 0:00:03]} Bc5 {[%emt 0:00:00]} 43. Be4 {[%emt 0:00:01]} Ke5 {[%emt 0:00:00]} 44. Re1 {[%emt 0:00:02]} Rxh4 {[%emt 0:00:00]} 45. Bd5+ {[%emt 0:00:03]} Kf6 {[%emt 0:00:00]} 46. Re8 {[%emt 0:00:01]} Rd4+ {[%emt 0:00:00]} 47. Ke2 {[%emt 0:00:01]} Rf4 {[%emt 0:00:00]} 48. Re4 {[%emt 0:00:03]} Rf5 {[%emt 0:00:00]} 49. f4 {[%emt 0:00:06]} h4 {[%emt 0:00:00]} 50. Kf3 {[%emt 0:00:00]} Rh5 {[%emt 0:00:00]} 51. Kg4 {[%emt 0:00:05]} Rh8 {[%emt 0:00:00]} 52. Re2 {[%emt 0:00:01]} Bd6 {[%emt 0:00:00]} 53. Rh2 {[%emt 0:00:02]} Rg8+ {[%emt 0:00:00]} 54. Kf3 {[%emt 0:00:07]} Rg3+ {[%emt 0:00:00]} 55. Ke2 {[%emt 0:00:00]} h3 {[%emt 0:00:01]} 56. Bb7 {[%emt 0:00:05]} Bxf4 {[%emt 0:00:02]} 57. Bc8 {[%emt 0:00:01]} Re3+ {[%emt 0:00:03]} 58. Kf2 {[%emt 0:00:01]} Re8 {[%emt 0:00:01]} 59. Rxh3 {[%emt 0:00:01]} Rxc8 {[%emt 0:00:01]} 60. Kf3 {[%emt 0:00:00]} Rxc4 {[%emt 0:00:01]} 61. Rh5 {[%emt 0:00:02]} Rxa4 {[%emt 0:00:02]} 0-1

[Event "XTX Markets LCC Super Blitz-S2 2024"]
[Site "London"]
[Date "2024.12.07"]
[Round "7.3"]
[White "Firouzja, Alireza"]
[Black "Vitiugov, Nikita"]
[Result "1-0"]
[Annotator "TA"]
[ECO "A07"]
[WhiteElo "2763"]
[BlackElo "2668"]
[PlyCount "71"]
[EventDate "2024.11.28"]
[EventType "tourn"]
[EventCountry "ENG"]
[SourceTitle "playchess.com"]
[Source "ChessBase"]
[SourceQuality "1"]
[TimeControl "180+2"]

{[%evp 15,71,11,15,7,18,3,11,7,17,6,12,0,19,21,77,85,85,79,81,56,71,78,106,97,127,100,119,121,134,135,158,68,77,74,78,85,74,78,220,164,235,188,197,93,155,154,134,143,123,108,449,459,571,580,820,791,758,829]} 1. Nf3 {[%emt 0:00:01]} d5 {[%emt 0:00:01]} 2. b3 {[%emt 0:00:01]} Bf5 {[%emt 0:00:02]} 3. Bb2 {[%emt 0:00:01]} e6 {[%emt 0:00:01]} 4. g3 {[%emt 0:00:01]} h6 {[%emt 0:00:02]} 5. Bg2 {[%emt 0:00:01]} Nf6 {[%emt 0:00:01]} 6. O-O {[%emt 0:00:02]} Be7 {[%emt 0:00:01]} 7. d3 {[%emt 0:00:00]} O-O {[%emt 0:00:01]} 8. Nbd2 {[%emt 0:00:01]} Bh7 {[%emt 0:00:02]} 9. Re1 {[%emt 0:00:01]} a5 {[%emt 0:00:02]} 10. a4 {[%emt 0:00:03]} c6 {[%emt 0:00:04]} 11. e4 {[%emt 0:00:02] The position is equal.} Na6 {[%emt 0:00:03]} 12. exd5 {[%emt 0:00:14]} Nxd5 {[%emt 0:00:09]} 13. Nc4 {[%emt 0:00:06]} Nab4 {[%emt 0:00:07]} 14. Qd2 {[%emt 0:00:10]} c5 {[%emt 0:00:11]} (14... Re8 $11) 15. Nfe5 $16 {[%emt 0:00:09]} Bf6 {[%emt 0:00:08]} 16. f4 {[%emt 0:00:07]} Qc7 {[%emt 0:00:10]} 17. Qf2 {[%emt 0:00:11]} Rad8 {[%emt 0:00:08]} 18. Re2 {[%emt 0:00:03]} Rb8 {[%emt 0:00:25]} 19. Rae1 {[%emt 0:00:06]} Ne7 {[%emt 0:00:30]} 20. Na3 {[%emt 0:00:14]} b6 {[%emt 0:00:15]} 21. Nb5 {[%emt 0:00:05]} Qd8 {[%emt 0:00:01] [#]} 22. Rd2 $1 {[%emt 0:00:17]} Qc8 {[%emt 0:00:14]} 23. Nd6 {[%emt 0:00:58]} (23. d4 $16) 23... Qd8 {[%emt 0:00:06]} 24. Ne4 {[%emt 0:00:04] Hoping for Nxf6+. White has more active pieces.} Bxe5 {[%emt 0:00:12]} 25. Bxe5 {[%emt 0:00:02]} Rc8 {[%emt 0:00:01]} 26. Nd6 {[%emt 0:00:13][%cal Od3d4] [#] And now d4! would win.} Rc6 {[%emt 0:00:03]} 27. Nc4 {[%emt 0:00:06][%cal Od3d4]} Rc8 {[%emt 0:00:08]} (27... Ned5 $142 28. g4 f6) 28. g4 {[%emt 0:00:08]} Nec6 {[%emt 0:00:06]} 29. Bb2 {[%emt 0:00:08] This pair of bishops is nice.} (29. Bd6 $18 {has better winning chances.}) 29... Re8 {[%emt 0:00:05]} (29... Nd4 $142) 30. f5 {[%emt 0:00:05]} Nd4 {[%emt 0:00:24]} 31. Bxd4 {[%emt 0:00:01]} cxd4 {[%emt 0:00:04]} 32. Rde2 {[%emt 0:00:01]} Qg5 $2 {[%emt 0:00:15][%mdl 8192]} (32... Rf8 $16 {is tougher.}) 33. Nd6 $18 {[%emt 0:00:06] White is clearly winning.} ({Weaker is} 33. Nxb6 Rc3 $16) ({Less strong is} 33. Qxd4 Qh4 $18) (33. fxe6 Rxe6 34. Rxe6 fxe6 $14) 33... Qxg4 {[%emt 0:00:01]} 34. fxe6 {[%emt 0:00:03]} fxe6 {[%emt 0:00:04]} 35. Qf7+ {[%emt 0:00:01]} Kh8 {[%emt 0:00:01]} 36. Nxe8 {[%emt 0:00:01] Weighted Error Value: White=0.14 (very precise) /Black=0.48.  Loses game:     	---       	Black=1      Mistake:       	White=2     	Black=4      Inaccurate:     	---       	Black=3      OK:         	White=8     	Black=6      Best:        	White=2     	Black=2      Strong:       	White=1     	---} 1-0

[Event "XTX Markets LCC Super Blitz-S2 2024"]
[Site "London"]
[Date "2024.12.07"]
[Round "7.4"]
[White "Vidit, Santosh Gujrathi"]
[Black "Smirin, Ilia"]
[Result "1/2-1/2"]
[Annotator "TA"]
[ECO "B30"]
[WhiteElo "2727"]
[BlackElo "2574"]
[PlyCount "84"]
[EventDate "2024.11.28"]
[EventType "tourn"]
[EventCountry "ENG"]
[SourceTitle "playchess.com"]
[Source "ChessBase"]
[SourceQuality "1"]
[TimeControl "180+2"]

{[%evp 9,84,2,17,8,14,14,13,0,0,0,13,22,18,25,23,27,33,4,12,11,33,31,60,56,49,39,24,29,40,50,24,7,13,22,165,-99,-98,-137,-156,-143,-151,-155,-55,-45,-2,-34,-27,-20,-29,-16,-18,-32,-6,-52,0,0,0,0,0,0,0,0,0,0,0,0,0,0,0,0,0,0,0,0,0,0,0]} 1. e4 {[%emt 0:00:01]} c5 {[%emt 0:00:02]} 2. Nf3 {[%emt 0:00:01]} Nc6 {[%emt 0:00:02]} 3. Bb5 {[%emt 0:00:01]} e6 {[%emt 0:00:01]} 4. Bxc6 {[%emt 0:00:04]} bxc6 {[%emt 0:00:01]} 5. d3 {[%emt 0:00:03]} Qc7 {[%emt 0:00:06]} 6. Nc3 {[%emt 0:00:08]} e5 {[%emt 0:00:07]} 7. O-O {[%emt 0:00:06]} d6 {[%emt 0:00:01]} 8. Ne2 {[%emt 0:00:09]} Be7 {[%emt 0:00:21]} 9. Ng3 {[%emt 0:00:01]} g6 {[%emt 0:00:02]} 10. h3 {[%emt 0:00:17]} h5 {[%emt 0:00:10]} 11. c3 {[%emt 0:00:04]} Nf6 {[%emt 0:00:08]} 12. Bg5 {[%emt 0:00:06]} Nh7 {[%emt 0:00:14]} 13. Bxe7 {[%emt 0:00:05]} Qxe7 {[%emt 0:00:02]} 14. d4 {[%emt 0:00:05]} h4 {[%emt 0:00:10]} 15. Ne2 {[%emt 0:00:02]} Ng5 {[%emt 0:00:04]} 16. Nxg5 {[%emt 0:00:08]} Qxg5 {[%emt 0:00:02]} 17. f4 {[%emt 0:00:02]} exf4 {[%emt 0:00:05]} 18. Nxf4 {[%emt 0:00:02]} cxd4 {[%emt 0:00:07]} 19. cxd4 {[%emt 0:00:07]} O-O {[%emt 0:00:07]} 20. Rc1 {[%emt 0:00:03]} Re8 {[%emt 0:00:12]} 21. Qf3 {[%emt 0:00:08][%cal Of4d5] Hoping for Nd5!} Bd7 {[%emt 0:00:23] [#]} (21... Qg3 $11) 22. Nh5 $2 {[%emt 0:00:31]} f5 $17 {[%emt 0:00:10]} (22... Qxh5 $2 23. Qxf7+ Kh8 24. Qxd7 $18) 23. Qb3+ {[%emt 0:00:22] [#]} Be6 $1 {[%emt 0:00:09]} (23... Kf8 24. Nf4 (24. Qb7 Rad8 $11) 24... Rxe4 25. Qb7 $17) 24. d5 {[%emt 0:00:07]} Bf7 {[%emt 0:00:08]} (24... Qxh5 25. dxe6 Qg5 26. exf5 (26. Rxc6 Rab8 $18) 26... gxf5 27. Rce1 $18 (27. Rxc6 Rab8 $18)) 25. Nf4 {[%emt 0:00:21] [#]} Rxe4 {[%emt 0:00:02]} ({Black should try} 25... Rab8 $1 $17 {[%cal Rb8b3]} 26. Qa3 Rxe4 27. Qxa7 (27. Qxd6 $2 {loses.} Rxb2 28. Qxc6 Rxf4 $19) 27... Rxb2 28. Qa8+ Kh7) 26. Ne6 $15 {[%emt 0:00:25]} Qg3 {[%emt 0:00:36]} (26... Bxe6 {is more complex.} 27. dxe6 c5 28. Rce1 Rxe1 29. Rxe1 Qe7) 27. Rxc6 {[%emt 0:00:21]} Qxb3 {[%emt 0:00:06]} 28. axb3 {[%emt 0:00:01]} Bxe6 29. dxe6 {[%emt 0:00:00]} Rxe6 $11 {[%emt 0:00:02][%mdl 4096] Endgame. KRR-KRR} 30. Rf4 {[%emt 0:00:05]} Rb8 {[%emt 0:00:04]} 31. b4 {[%emt 0:00:02]} (31. Rxh4 $11 {is superior.} Rxb3 32. Rc7) 31... Re4 {[%emt 0:00:08]} (31... Rb6 $15 32. Rc8+ Kg7 33. Rxh4 Re1+ 34. Kf2 Rd1) 32. Rxe4 {The position is equal.} fxe4 {[%emt 0:00:01]} 33. Rxd6 {[%emt 0:00:03]} Rxb4 {[%emt 0:00:02]} 34. Rxg6+ {[%emt 0:00:02] KR-KR} Kf7 {[%emt 0:00:04]} 35. Rg4 {[%emt 0:00:05]} Kf6 {[%emt 0:00:05]} 36. Rxh4 {[%emt 0:00:01]} Ke5 {[%emt 0:00:01]} 37. Rh7 {[%emt 0:00:02]} a5 {[%emt 0:00:07]} 38. Rh5+ {[%emt 0:00:02]} Kd4 {[%emt 0:00:01]} 39. Rxa5 {[%emt 0:00:02]} Rxb2 {[%emt 0:00:02]} 40. Ra3 {[%emt 0:00:03]} e3 {[%emt 0:00:01] White must now prevent ...Rb1+.} 41. Kf1 {[%emt 0:00:02]} Rf2+ {[%emt 0:00:01]} 42. Ke1 {[%emt 0:00:01]} Rxg2 {[%emt 0:00:02] Weighted Error Value: White=0.23 (precise) /Black=0.18 (very precise) .  Missed win:     	White=1     	---        Mistake:       	White=1     	Black=3      Inaccurate:     	White=2     	Black=3      OK:         	White=15    	Black=15     Best:        	White=3     	---        Strong:       	---       	Black=1} 1/2-1/2